[Event "Frauenbundesliga 2024-25"]
[Site "Germany"]
[Date "2025.01.25"]
[Round "3.6"]
[White "Muedder, Melanie"]
[Black "Valkova, Angelika"]
[Result "0-1"]
[Annotator "TA"]
[ECO "C05"]
[WhiteElo "1933"]
[BlackElo "2001"]
[PlyCount "76"]
[EventDate "2024.11.06"]
[EventType "team-tourn"]
[EventCountry "GER"]
[SourceTitle "playchess.com"]
[Source "ChessBase"]
[SourceQuality "1"]
[WhiteTeam "SG Solingen"]
[BlackTeam "Schachfreunde Deizisau"]
[TimeControl "40/5400+30:1800+30"]

{[%evp 12,76,-13,-10,-8,-8,0,-4,-2,-6,-6,-6,0,0,0,-2,-2,-2,4,-13,0,0,0,0,0,0,0,-13,0,-3,-3,-29,0,0,0,0,-6,-14,0,-8,12,9,14,8,14,0,0,0,0,0,0,0,2,-103,-100,-104,-87,-96,0,0,135,-454,-385,-375,-369,-29995,-29996]} 1. e4 {[%emt 0:00:03]} e6 {[%emt 0:00:06]} 2. d4 {[%emt 0:00:07]} d5 {[%emt 0:00:04]} 3. Nd2 {[%emt 0:00:10]} Nf6 {[%emt 0:00:06]} 4. Bd3 {[%emt 0:00:41]} c5 {[%emt 0:00:21]} 5. c3 {[%emt 0:00:19]} cxd4 {[%emt 0:00:15]} 6. cxd4 {[%emt 0:00:08]} dxe4 {[%emt 0:00:19]} 7. Nxe4 {[%emt 0:00:11]} Nxe4 {[%emt 0:00:43] C05: French Tarrasch: 3...Nf6 4 e5 Nfd7, 5 f4 and 5 Bd3 sidelines.} (7... Qxd4 $2 8. Bb5+ Bd7 9. Qxd4 $18) 8. Bxe4 {[%emt 0:00:06]} Bb4+ {[%emt 0:00:06]} 9. Bd2 {[%emt 0:01:50]} Bxd2+ {[%emt 0:00:22] The position is equal.} 10. Qxd2 {[%emt 0:00:21]} Nd7 {[%emt 0:00:20]} 11. Ne2 {[%emt 0:07:00]} Nf6 {[%emt 0:02:02]} 12. Bf3 {[%emt 0:01:16]} Rb8 {[%emt 0:07:15]} 13. O-O {[%emt 0:05:08]} O-O {[%emt 0:04:23]} 14. Rfd1 {[%emt 0:05:47]} Qd6 $146 {[%emt 0:05:10]} (14... b6 15. d5 exd5 16. Nc3 Be6 17. Nxd5 Bxd5 18. Bxd5 Qe7 19. Bf3 Rfd8 20. Qe2 Qxe2 21. Bxe2 {½-½ Brady,S (2288)-Williams,S (2473) Bunratty Masters 27th 2020 (2)}) 15. Nc3 {[%emt 0:15:02]} b5 {[%emt 0:01:17]} 16. d5 {[%emt 0:08:24]} b4 {[%emt 0:05:34]} 17. Ne4 {[%emt 0:02:28]} Nxe4 {[%emt 0:00:10]} 18. Bxe4 {[%emt 0:00:06]} Bb7 {[%emt 0:13:25]} 19. Rac1 {[%emt 0:13:56]} Rfc8 {[%emt 0:08:44]} 20. Rxc8+ {[%emt 0:09:58]} Rxc8 {[%emt 0:00:07]} 21. Qe3 {[%emt 0:01:23]} Bxd5 {[%emt 0:05:42]} 22. Bxd5 {[%emt 0:05:15]} exd5 {[%emt 0:00:20]} 23. Qxa7 $11 {[%emt 0:01:17][%mdl 4096] Endgame KQR-KQR} d4 {[%emt 0:06:12]} 24. h3 {[%emt 0:02:18]} (24. Qxd4 $2 Qxd4 25. Rf1 Qxb2 $19) 24... Rd8 {[%emt 0:00:21]} 25. a3 {[%emt 0:02:09]} b3 {[%emt 0:13:33]} 26. Qb7 {[%emt 0:02:45]} Qe6 {[%emt 0:03:16]} 27. Qc7 {[%emt 0:04:31]} Qd5 {[%emt 0:03:02]} 28. Rd3 {[%emt 0:02:52][%cal Od3b3]} h5 {[%emt 0:02:59]} 29. Qb6 {[%emt 0:00:15]} Rd6 {[%emt 0:01:02]} 30. Qb4 {[%emt 0:01:20]} (30. Qxb3 $2 Qxb3 31. Rxb3 d3 $19) 30... Rg6 {[%emt 0:03:29]} 31. g3 {[%emt 0:02:31]} (31. Qxb3 $2 Qxg2#) 31... Rc6 {[%emt 0:00:41]} 32. Qe1 {[%emt 0:02:11] Prevents Rc1} (32. Qb8+ $11 Kh7 33. Qf4) 32... Rc2 $17 {[%emt 0:02:27]} 33. Qd1 {[%emt 0:01:59]} Qf5 {[%emt 0:07:38]} 34. Rf3 {[%emt 0:00:35] [#]} Qe4 $40 {[%emt 0:02:27][%mdl 128] Black has some attack. Black is much more active.} (34... Qxh3 $6 35. Rxb3 Rc8 36. Rb4 $14) (34... Qc5 $1 $17 {and ...Rc1 would now be decisive} 35. Qd3 (35. Rxb3 $2 Rc1 $19) 35... Rxb2) 35. Rxb3 $11 {[%emt 0:01:47] White threatens Rb8+ and mate.} Re2 {[%emt 0:00:34]} (35... g6 $11 {remains equal.}) 36. f3 $2 {[%emt 0:00:51][%mdl 8192]} (36. Kf1 $16 {[%cal Of2f3] is necessary to keep the advantage. Black must now prevent f3!.} Kh7 37. a4 (37. Qxe2 $2 Qh1#)) 36... Qe5 $19 {[%emt 0:01:14]} 37. Kf1 {[%emt 0:00:18]} Rh2 {[%emt 0:00:20] ( -> ...Rh1+)} 38. Qe1 $2 {[%emt 0:00:45] [#]} (38. f4 $19 Qd5 39. Qf3) 38... Rh1+ {[%emt 0:00:12] Weighted Error Value: White=0.46/Black=0.15 (very precise)   Loses game:     	White=1     	---        Mistake:       	White=2     	Black=2      Inaccurate:     	White=1     	---        OK:         	White=12    	Black=16     Best:        	White=3     	Black=3} 0-1

[Event "Frauenbundesliga 2024-25"]
[Site "Germany"]
[Date "2025.01.25"]
[Round "3.6"]
[White "Peglau, Sarah"]
[Black "Rosmait, Emily"]
[Result "1-0"]
[Annotator "TA"]
[ECO "A34"]
[WhiteElo "1870"]
[BlackElo "1965"]
[PlyCount "59"]
[EventDate "2024.11.06"]
[EventType "team-tourn"]
[EventCountry "GER"]
[SourceTitle "playchess.com"]
[Source "ChessBase"]
[SourceQuality "1"]
[WhiteTeam "Dippoldiswalde"]
[BlackTeam "Harksheide"]
[TimeControl "40/5400+30:1800+30"]

{[%evp 9,59,0,43,43,45,16,22,20,38,39,40,37,97,90,110,104,149,40,201,193,171,155,141,145,170,152,295,231,288,289,409,358,404,378,896,883,1078,1058,1033,811,1456,1425,2117,1366,6331,6370,29982,29981,29980,29982,29982,29983]} 1. c4 {[%emt 0:00:04]} c5 {[%emt 0:00:17]} 2. Nc3 {[%emt 0:00:14]} Nf6 {[%emt 0:00:06]} 3. e4 {[%emt 0:00:10]} e5 {[%emt 0:06:47]} 4. d3 {[%emt 0:02:20]} d6 {[%emt 0:03:48]} 5. h3 {[%emt 0:07:05]} h5 $146 {[%emt 0:10:10]} (5... Nc6 6. Nf3 Be7 7. Bg5 O-O 8. Bxf6 Bxf6 9. Nd5 Nd4 10. Nxd4 exd4 11. Nxf6+ Qxf6 {0-1 Pehl,F (966)-Shim Ng Min,F (1167) IECC CL0-2020.00 email 2019}) 6. Be2 {[%emt 0:05:06] A34: Symmetrical English: 2 Nc3, lines with ...d5.} Be7 {[%emt 0:06:21]} 7. Nd5 {[%emt 0:07:18]} Nxd5 {[%emt 0:11:19]} 8. cxd5 {[%emt 0:00:25] The position is equal.} Bg5 {[%emt 0:11:16]} 9. Nf3 {[%emt 0:15:35][%cal Bg1f3,Bf3d2,Bd2c4][%mdl 32]} Bxc1 {[%emt 0:04:23]} 10. Rxc1 {[%emt 0:02:35]} Qa5+ {[%emt 0:18:15]} ({Black should play} 10... Nd7 $14) 11. Nd2 $16 {[%emt 0:00:26]} g6 {[%emt 0:00:28][%cal Ob7b5]} 12. O-O {[%emt 0:01:25][%cal Ob2b4]} b5 {[%emt 0:03:58][%cal Ob8d7] [#]} 13. a4 {[%emt 0:10:46]} b4 $2 {[%emt 0:02:50] This costs Black the game.} (13... Qxa4 $14 14. Qxa4 bxa4) 14. f4 $18 {[%emt 0:03:20]} exf4 {[%emt 0:02:04]} 15. Rxf4 {[%emt 0:00:28]} Nd7 {[%emt 0:00:48]} 16. Nc4 {[%emt 0:04:07] White is more active.} Qc7 {[%emt 0:00:04]} 17. d4 $36 {[%emt 0:04:04][%cal Oe4e5,Bd3d4,Bd4c5][%mdl 2080] White is in control.} Nb6 {[%emt 0:03:24]} (17... O-O $16) 18. dxc5 {[%emt 0:06:54]} Nxc4 {[%emt 0:00:15]} 19. Rxc4 {[%emt 0:00:51] e5 is the strong threat.} Ba6 {[%emt 0:02:55]} (19... O-O $142 20. c6 (20. Rxb4 Qxc5+ 21. Rd4 Bd7 $16) 20... a5 21. Bxh5 Qa7+ 22. Kh1 Re8) 20. Qd4 {[%emt 0:04:54]} (20. Rxb4 $2 {perishes.} Qxc5+ 21. Kh2 Qxb4 $19) 20... O-O {[%emt 0:02:28]} 21. cxd6 {[%emt 0:04:11]} Qxd6 {[%emt 0:00:02]} (21... Qd7 22. e5 Bxc4) 22. Rf6 {[%emt 0:01:06][%cal Bf4f6,Bf6d6,Bd6d7][%mdl 32]} Bxc4 {[%emt 0:05:27]} 23. Rxd6 {[%emt 0:00:28]} Bxe2 {[%emt 0:00:08]} 24. Rd7 {[%emt 0:03:28]} a5 {[%emt 0:01:15]} 25. e5 {[%emt 0:00:47][%cal Be4e5,Be5e6][%mdl 32]} Rac8 {[%emt 0:00:56]} 26. e6 {[%emt 0:00:35]} Rc1+ {[%emt 0:03:12]} 27. Kh2 {[%emt 0:00:07] Intending Rxf7 and mate.} Rcc8 {[%emt 0:00:29]} 28. Rxf7 {[%emt 0:04:09] White mates.} Rxf7 {[%emt 0:00:14]} 29. exf7+ {[%emt 0:00:04]} Kxf7 {[%emt 0:00:09]} 30. Qf2+ {[%emt 0:00:19] Weighted Error Value: White=0.27 (precise) /Black=1.60  Loses game:     	---       	Black=1      Mistake:       	White=1     	Black=4      Inaccurate:     	White=1     	Black=1      OK:         	White=4     	Black=6      Best:        	White=3     	---} 1-0

[Event "Frauenbundesliga 2024-25"]
[Site "Germany"]
[Date "2025.01.25"]
[Round "3.7"]
[White "Batsiashvili, Nino"]
[Black "Pipiras, Filipa Fortuna"]
[Result "1-0"]
[Annotator "TA"]
[ECO "B14"]
[WhiteElo "2476"]
[BlackElo "2178"]
[PlyCount "59"]
[EventDate "2024.11.06"]
[EventType "team-tourn"]
[EventCountry "GER"]
[SourceTitle "playchess.com"]
[Source "ChessBase"]
[SourceQuality "1"]
[WhiteTeam "Schwaebisch Hall"]
[BlackTeam "Hemer 1932"]
[TimeControl "40/5400+30:1800+30"]

{[%evp 13,59,9,16,28,10,16,40,31,39,33,47,23,54,38,36,-3,-18,-17,0,0,0,0,18,0,18,0,0,0,0,-22,0,0,62,59,1064,1032,29973,29974,29973,29975,29974,5422,29990,29991,29991,29992,29998,29999]} 1. d4 {[%emt 0:00:01]} Nf6 {[%emt 0:00:45]} 2. c4 {[%emt 0:00:06]} e6 {[%emt 0:00:07]} 3. Nc3 {[%emt 0:00:04]} Bb4 {[%emt 0:00:39]} 4. Nf3 {[%emt 0:00:05]} O-O {[%emt 0:01:00]} 5. Bg5 {[%emt 0:03:59]} c5 {[%emt 0:02:18]} 6. e3 {[%emt 0:03:09]} cxd4 {[%emt 0:01:42]} 7. exd4 {[%emt 0:01:53]} d5 {[%emt 0:00:23]} 8. Rc1 {[%emt 0:00:34] B14: Caro-Kann: Panov-Botvinnik Attack with 5...e6 and 5...g6.} Nc6 {[%emt 0:09:56]} 9. a3 {[%emt 0:01:38]} Be7 {[%emt 0:00:44]} 10. c5 {[%emt 0:02:41] White is slightly better.} Ne4 {[%emt 0:15:55]} 11. Bxe7 {[%emt 0:06:27]} Qxe7 {[%emt 0:00:42]} 12. Be2 {[%emt 0:00:11]} Rd8 {[%emt 0:08:39]} 13. O-O {[%emt 0:15:26]} e5 $146 {[%emt 0:00:58]} (13... Nxc3 14. Rxc3 e5 15. Nxe5 Nxe5 16. dxe5 d4 17. Rc1 Qxe5 18. Bf3 Rb8 19. Qd2 Bd7 20. Rfe1 Qf6 21. b4 Bc6 22. Qd3 {½-½ Xiong,J (2688)-Nakamura,H (2760) Titled Tuesday intern op 07th Jun Early blitz 2022 (10)}) 14. Re1 {[%emt 0:10:26]} Nxc3 {[%emt 0:29:06]} 15. bxc3 {[%emt 0:01:47]} Be6 {[%emt 0:02:16]} 16. dxe5 {[%emt 0:09:29]} Qxc5 {[%emt 0:00:25]} 17. Bd3 {[%emt 0:00:03]} g6 {[%emt 0:06:33][%cal Oe6g4]} 18. Ng5 {[%emt 0:04:27]} Re8 {[%emt 0:02:44]} 19. Qd2 {[%emt 0:03:43]} Qxa3 {[%emt 0:01:45]} 20. h4 {[%emt 0:01:57][%cal Oh4h5]} a5 {[%emt 0:07:02]} 21. h5 {[%emt 0:03:11]} Qf8 {[%emt 0:02:36]} 22. Rb1 {[%emt 0:00:34]} a4 {[%emt 0:03:17]} (22... Re7 $1 $11) 23. Rxb7 $14 {[%emt 0:00:39][%cal Og5h7] Strongly threatening Nxh7!. White has more active pieces.} a3 $2 {[%emt 0:00:29][%mdl 8192] [#] Black cannot hold the game after this.} (23... Re7 $14 24. Rb6 Qc8) 24. Nxh7 $1 $18 {[%emt 0:05:19][%mdl 512]} Kxh7 {[%emt 0:00:04]} (24... Qg7 25. Nf6+) 25. hxg6+ {[%emt 0:00:35]} Kg8 {[%emt 0:01:26]} 26. gxf7+ {[%emt 0:01:16]} Bxf7 {[%emt 0:00:07] [#]} 27. Re3 $1 {[%emt 0:01:01] Intending Rg3+ and mate.} ({Avoid the trap} 27. Qg5+ $2 Qg7 28. Qxg7+ Kxg7 $19) 27... Rxe5 {[%emt 0:00:57]} 28. Rg3+ {[%emt 0:00:24] White mates.} Qg7 {[%emt 0:01:09]} 29. Qh6 {[%emt 0:02:37][%csl Gg3][%cal Rh6g7]} Qxg3 {[%emt 0:00:31]} 30. Qh7+ {[%emt 0:00:09] Weighted Error Value: White=0.04 (flawless) /Black=0.67  Loses game:     	---       	Black=1      Mistake:       	---       	Black=1      Inaccurate:     	White=1     	Black=2      OK:         	White=8     	Black=5      Best:        	White=1     	---        Brilliant:      	White=1     	---} 1-0

[Event "Frauenbundesliga 2024-25"]
[Site "Germany"]
[Date "2025.01.25"]
[Round "3.7"]
[White "Socko, Monika"]
[Black "Rogule, Laura"]
[Result "0-1"]
[Annotator "TA"]
[ECO "D02"]
[WhiteElo "2371"]
[BlackElo "2219"]
[PlyCount "72"]
[EventDate "2024.11.06"]
[EventType "team-tourn"]
[EventCountry "GER"]
[SourceTitle "playchess.com"]
[Source "ChessBase"]
[SourceQuality "1"]
[WhiteTeam "Hamburger SK"]
[BlackTeam "1871 Loeberitz"]
[TimeControl "40/5400+30:1800+30"]

{[%evp 13,72,8,0,-67,-14,-74,-80,-56,-56,-93,-56,-50,-56,-57,-35,-68,-74,-84,-102,-172,-157,-163,-161,-183,-182,-193,-201,-192,-174,-195,-192,-259,-198,-208,-211,-234,-230,-230,-216,-233,-262,-265,-265,-289,-235,-287,-291,-356,-336,-333,-322,-354,-330,-366,-370,-484,-463,-479,-466,-477,-469]} 1. d4 {[%emt 0:00:02]} d5 {[%emt 0:00:07]} 2. Nf3 {[%emt 0:00:05]} Nf6 {[%emt 0:00:34]} 3. g3 {[%emt 0:00:03]} c5 {[%emt 0:02:23]} 4. c4 {[%emt 0:00:33]} dxc4 {[%emt 0:04:39]} 5. Qa4+ {[%emt 0:01:27]} Nc6 {[%emt 0:05:16]} 6. Bg2 {[%emt 0:00:33]} Bd7 {[%emt 0:04:12]} 7. Qxc4 {[%emt 0:02:16]} cxd4 {[%emt 0:15:24]} 8. O-O {[%emt 0:04:56] D02: 1 d4 d5 2 Nf3 sidelines, including 2...Nf6 3 g3 and 2...Nf6 3 Bf4.} ({White should try} 8. Nxd4 $11 Na5 9. Qd3) 8... Qb6 {[%emt 0:08:56]} ({Black should play} 8... e5 $15 9. Ng5 Qe7) 9. Na3 {[%emt 0:13:47]} (9. e3 $11) 9... e5 $17 {[%emt 0:08:03]} 10. Ng5 {[%emt 0:07:34] Black is better.} Nd8 {[%emt 0:00:27]} 11. Qb3 $146 {[%emt 0:07:53]} (11. Qd3 Rc8 12. b3 Rxc1 13. Rfxc1 Bxa3 14. Rc2 O-O 15. b4 Bxb4 16. Rb1 Qa5 17. Qc4 {0-1 Amarasinghe,P (2019)-Zelkind,E (2140) Minneapolis Knighter 2012 (2)}) 11... Qxb3 {[%emt 0:04:45]} 12. axb3 {[%emt 0:02:05]} Bc6 $36 {[%emt 0:05:18][%mdl 2048] Black fights for an advantage.} 13. Nf3 {[%emt 0:15:10]} Nd7 {[%emt 0:03:00][%cal Bf6d7,Bd7c5,Bc5e4,Be4d2][%mdl 32]} 14. Nc4 {[%emt 0:01:41]} f6 {[%emt 0:00:21] Black continues to play with concentration.} 15. Bd2 {[%emt 0:05:39]} Nc5 {[%emt 0:05:38]} 16. Ra3 {[%emt 0:08:34]} (16. Na5 $17) 16... Ne4 $19 {[%emt 0:05:58]} 17. Ra2 {[%emt 0:00:17]} Nxd2 {[%emt 0:01:11]} 18. Nfxd2 {[%emt 0:00:44]} Bxg2 {[%emt 0:01:35]} 19. Kxg2 {[%emt 0:00:02][%cal Oc4b6]} Nc6 {[%emt 0:00:21]} 20. Rc1 {[%emt 0:02:49]} Bb4 {[%emt 0:02:10]} 21. Ne4 {[%emt 0:02:09]} Ke7 {[%emt 0:04:40] Wards off Ncd6} 22. g4 {[%emt 0:00:58]} (22. f3 {was necessary.}) 22... Rhd8 {[%emt 0:02:32]} 23. Rd1 {[%emt 0:01:07]} Ke6 {[%emt 0:01:13]} 24. Ra4 {[%emt 0:05:37]} Rac8 {[%emt 0:06:25] Strongly threatening ...b5.} 25. Raa1 {[%emt 0:00:00]} Rd5 {[%emt 0:00:59]} ({But not} 25... b5 26. Na3) 26. Rd3 {[%emt 0:03:41]} Be7 {[%emt 0:00:00]} 27. Rh3 {[%emt 0:02:42]} h6 {[%emt 0:01:21]} 28. Ng3 {[%emt 0:00:56]} Bd8 {[%emt 0:00:54]} 29. Nf5 {[%emt 0:00:25]} Rd7 {[%emt 0:01:16]} 30. Nd2 {[%emt 0:01:35]} b6 {[%emt 0:01:50][%cal Oh6h5]} 31. Rc1 {[%emt 0:01:24]} Rcc7 {[%emt 0:02:37][%cal Oh6h5]} 32. Ne4 {[%emt 0:00:19]} Nb4 {[%emt 0:00:51]} 33. Rc4 {[%emt 0:01:36]} Nd5 {[%emt 0:00:00]} 34. Rf3 {[%emt 0:01:03]} Nf4+ {[%emt 0:00:56] Black is clearly winning.} 35. Rxf4 {[%emt 0:00:49] [#] and Rf3 would now be decisive} Rxc4 (35... exf4 $2 36. Nxd4+ Kf7 37. Nc6 $19) 36. bxc4 {[%emt 0:03:02]} exf4 {[%emt 0:00:48] Weighted Error Value: White=0.30/Black=0.09 (flawless)   Mistake:       	White=3     	Black=1      Inaccurate:     	White=2     	Black=1      OK:         	White=8     	Black=17     Best:        	---       	Black=3} 0-1

[Event "Frauenbundesliga 2024-25"]
[Site "Germany"]
[Date "2025.01.25"]
[Round "3.7"]
[White "Butenandt, Svenja"]
[Black "Tsolakidou, Stavroula"]
[Result "1/2-1/2"]
[Annotator "TA"]
[ECO "E94"]
[WhiteElo "2158"]
[BlackElo "2451"]
[PlyCount "94"]
[EventDate "2024.11.06"]
[EventType "team-tourn"]
[EventCountry "GER"]
[SourceTitle "playchess.com"]
[Source "ChessBase"]
[SourceQuality "1"]
[WhiteTeam "Bayern Muenchen"]
[BlackTeam "Rodewischer Schachmiezen"]
[TimeControl "40/5400+30:1800+30"]

{[%evp 15,94,20,70,11,18,24,47,21,41,27,11,19,23,23,23,26,25,21,18,18,27,15,37,0,19,12,29,12,16,0,68,47,42,0,0,0,56,74,75,50,57,-138,-72,-75,47,46,46,63,59,60,60,60,60,66,49,49,49,49,49,48,58,65,57,63,43,59,95,20,35,8,35,35,35,35,35,35,35,42,42,42,42]} 1. d4 {[%emt 0:00:03]} Nf6 {[%emt 0:00:07]} 2. c4 {[%emt 0:00:04]} g6 {[%emt 0:00:06]} 3. Nc3 {[%emt 0:00:04]} Bg7 {[%emt 0:00:04]} 4. e4 {[%emt 0:00:05]} d6 {[%emt 0:00:05]} 5. Be2 {[%emt 0:00:08]} O-O {[%emt 0:00:09]} 6. Be3 {[%emt 0:00:03]} Na6 {[%emt 0:00:46]} 7. Nf3 {[%emt 0:00:22]} e5 {[%emt 0:00:34]} 8. O-O {[%emt 0:00:52]} Qe7 $1 {[%emt 0:00:20][%mdl 4] is currently scoring better than 8...Ng4.} (8... exd4 $11 9. Nxd4 Bd7) 9. dxe5 {[%emt 0:04:44] E94: King's Indian: Classical: 6 Be2 e5 7 0-0: Various Black 7th moves.} (9. d5 $14) 9... dxe5 $11 {[%emt 0:00:06]} 10. Nd5 {[%emt 0:00:07]} Qd8 {[%emt 0:00:33]} 11. Qc2 {[%emt 0:01:49]} (11. Nxe5 Nxd5 (11... Nxe4 12. Nd3 $15) 12. cxd5 Bxe5 $17) 11... Ng4 {[%emt 0:01:05]} 12. Rad1 {[%emt 0:02:16]} Nxe3 {[%emt 0:02:33]} 13. Nxe3 {[%emt 0:00:09]} Qe7 {[%emt 0:04:32]} 14. Nd5 {[%emt 0:02:08]} Qe8 {[%emt 0:08:02]} 15. c5 {[%emt 0:02:27]} c6 {[%emt 0:00:40]} 16. Ne3 {[%emt 0:00:16][%cal Bd5e3,Be3c4,Bc4d6][%mdl 32]} Nc7 $1 {[%emt 0:01:12]} 17. Nc4 {[%emt 0:01:44]} Qe7 {[%emt 0:01:25]} 18. Nd6 {[%emt 0:01:57]} b5 $146 {[%emt 0:02:47]} (18... Ne6 19. Bc4 Nf4 20. Qb3 Bg4 21. h3 Bh5 22. Kh2 Bxf3 23. Qxf3 b5 24. Bb3 a5 {1-0 Bluebaum,M (2672)-Chigaev,M (2621) Titled Tuesday intern op 04th Jul Late blitz 2023 (11)}) 19. h3 {[%emt 0:16:16]} Be6 {[%emt 0:15:51]} 20. a4 {[%emt 0:03:09]} a6 {[%emt 0:00:38]} 21. Ra1 {[%emt 0:09:04]} Rfb8 {[%emt 0:05:45]} 22. Qd2 {[%emt 0:16:12]} f5 {[%emt 0:07:05]} (22... f6 $11) 23. exf5 {[%emt 0:19:59] White is more active.} gxf5 {[%emt 0:00:08]} 24. Rfe1 {[%emt 0:01:58]} (24. Ng5 {keeps more tension.} e4 25. Nxe6 Qxe6 26. Qg5) 24... Qf6 {[%emt 0:12:51]} 25. Qa5 {[%emt 0:02:18]} Nd5 {[%emt 0:12:46]} (25... Qe7 $1 $11) 26. axb5 $14 {[%emt 0:00:06][%csl Oa6,Oc6,Oh7] Black has weak pawns} e4 {[%emt 0:04:31]} 27. bxc6 {[%emt 0:01:45][%cal Oe2c4]} (27. b6 $5) 27... Rxb2 $1 {[%emt 0:01:24][%cal Od5f4] and ...Nf4! would now be decisive} 28. Nd2 $2 {[%emt 0:04:56] Excellent horsemanship.} (28. c7 $2 Rxe2 (28... exf3 $2 29. Bxf3 $18) 29. Rab1 Rxe1+ (29... exf3 $2 30. Rb8+ Bf8 31. Rxa8 $19) 30. Nxe1 Rf8 $17) (28. Ra2 $1 $14 {keeps the upper hand.} Nf4 29. Rxb2 exf3 30. Bxf3 Qxb2 31. c7) 28... Qc3 {[%emt 0:03:20]} (28... Nc3 29. Bc4 Rxd2 30. c7 $16) (28... Qg5 $142 29. Nf3 Qh6 (29... exf3 30. Bxf3 $15)) 29. N6c4 $17 {[%emt 0:04:46] [#]} ({Avoid the trap} 29. N2c4 $2 Rxe2 30. Rxe2 Qxa1+ $19) 29... Rxd2 {[%emt 0:07:36]} 30. Nxd2 $14 {[%emt 0:01:16]} Qxa5 $1 {[%emt 0:01:12]} 31. Rxa5 {[%emt 0:00:01]} Bc3 {[%emt 0:00:06][%csl LRa5,LRd2]} 32. Rxa6 {[%emt 0:00:37]} Rxa6 {[%emt 0:00:14]} 33. Bxa6 {[%emt 0:00:03]} Bxd2 {[%emt 0:00:05]} 34. Rd1 {[%emt 0:01:36]} e3 {[%emt 0:01:39]} 35. fxe3 {[%emt 0:01:04]} Bxe3+ {[%emt 0:00:14]} 36. Kh1 {[%emt 0:00:03][%cal Od1d5]} Nc7 {[%emt 0:03:54] [#]} (36... Bxc5 $2 {too greedy.} 37. Rxd5 (37. Bc4 Nc7 $16) 37... Bxd5 38. c7 $18) 37. Bc8 {[%emt 0:01:24]} Bxc8 {[%emt 0:02:35]} (37... Bd5 38. Bxf5) 38. Rd8+ {[%emt 0:00:09]} Kf7 {[%emt 0:00:18]} 39. Rxc8 {[%emt 0:00:06]} Bf4 {[%emt 0:00:16]} 40. Rd8 {[%emt 0:01:21]} h5 {[%emt 0:02:14]} 41. Kg1 {[%emt 0:32:14]} (41. h4 $16) 41... h4 {[%emt 0:04:29]} 42. Kf1 {[%emt 0:00:00]} Ke6 {[%emt 0:01:13]} 43. Ke2 {[%emt 0:00:00] White is slightly better.} Na6 {[%emt 0:04:13]} 44. Kd3 {[%emt 0:00:00] Kc4 would now be deadly.} Nxc5+ {[%emt 0:04:21]} 45. Kc4 {[%emt 0:00:00]} Na6 {[%emt 0:00:22]} 46. Kb5 {[%emt 0:00:00][%mdl 1024] White has compensation.} Nc7+ {[%emt 0:00:04]} 47. Kb6 {[%emt 0:00:00]} Bg3 {[%emt 0:01:10] Weighted Error Value: White=0.17 (very precise) /Black=0.16 (very precise)   Mistake:       	White=2     	Black=4      Inaccurate:     	White=2     	Black=2      OK:         	White=16    	Black=16     Best:        	White=3     	Black=3      Strong:       	---       	Black=3} 1/2-1/2